fUST/lending_fUST_20250528
["ID","MTS","AMOUNT","RATE_DAILY","PERIOD"]
[362609503,1748374253411,-276.66025,0.00021095,2]
[362609505,1748374253421,-430.0,0.00021095,2]
[362609507,1748374253429,-430.0,0.00021095,2]
[362609509,1748374253441,-461.87591476,0.00021095,2]
[362609511,1748374253450,-1614.78,0.00021095,2]
[362609513,1748374253459,-566.8,0.00021095,2]
[362609515,1748374253469,-2382.96,0.00021095,2]
[362609517,1748374253480,-430.0,0.00021095,2]
[362609519,1748374253489,-584.02,0.00021095,2]
[362609521,1748374253499,-487.14,0.00021095,2]
[362609523,1748374253509,-430.0,0.00021095,2]
[362609525,1748374253518,-1381.99,0.00021095,2]
[362609527,1748374253528,-434.89,0.00021095,2]
[362609529,1748374253538,-1713.29,0.00021095,2]
[362609531,1748374253547,-430.0,0.00021095,2]
[362609533,1748374253556,-912.82,0.00021095,2]
[362609535,1748374253566,-430.0,0.00021095,2]
[362609537,1748374253575,-430.0,0.00021095,2]
[362609539,1748374253584,-499.65,0.00021095,2]
[362609541,1748374253594,-2022.5,0.00021095,2]
[362609543,1748374253603,-430.0,0.00021095,2]
[362609545,1748374253612,-3122.07,0.00021095,2]
[362609547,1748374253622,-430.0,0.00021095,2]
[362609548,1748374253631,-430.0,0.00021095,2]
[362609550,1748374253640,-430.0,0.00021095,2]
[362609552,1748374253650,-539.89,0.00021095,2]
[362609554,1748374253659,-440.16,0.00021095,2]
[362609556,1748374253668,-430.0,0.00021095,2]
[362609558,1748374253678,-767.74,0.00021095,2]
[362609560,1748374253687,-430.0,0.00021095,2]
[362609562,1748374253697,-485.69,0.00021095,2]
[362609564,1748374253706,-498.73174355,0.00021095,2]
[362609566,1748374253716,-430.0,0.00021095,2]
[362609568,1748374253727,-430.0,0.00021095,2]
[362609570,1748374253737,-430.0,0.00021095,2]
[362609572,1748374253747,-151.0,0.00021095,2]
[362609575,1748374253757,-833.42,0.00021095,2]
[362609577,1748374253767,-430.0,0.00021095,2]
[362609579,1748374253777,-539.4,0.00021095,2]
[362609581,1748374253787,-490.62,0.00021095,2]
[362609582,1748374253796,-430.0,0.00021095,2]
[362609585,1748374253806,-430.0,0.00021095,2]
[362609586,1748374253816,-1027.79,0.00021095,2]
[362609589,1748374253825,-634.57,0.00021095,2]
[362609590,1748374253835,-430.0,0.00021095,2]
[362609593,1748374253845,-430.0,0.00021095,2]
[362609594,1748374253855,-430.0,0.00021095,2]
[362609596,1748374253864,-430.0,0.00021095,2]
[362609598,1748374253874,-995.06,0.00021095,2]
[362609600,1748374253884,-430.0,0.00021095,2]
[362609603,1748374253895,-430.0,0.00021095,2]
[362609605,1748374253905,-1306.91,0.00021095,2]
[362609607,1748374253914,-812.69,0.00021095,2]
[362609609,1748374253925,-471.53,0.00021095,2]
[362609611,1748374253934,-430.0,0.00021095,2]
[362609613,1748374253944,-587.44,0.00021095,2]
[362609615,1748374253954,-151.0,0.00021107,2]
[362609617,1748374253963,-800.0,0.00021164,2]
[362609619,1748374253974,-2588.56552051,0.00021176,4]
[362609621,1748374253984,-405.0,0.00021366,2]
[362609623,1748374253993,-168.620966,0.00021369,2]
[362609625,1748374254003,-151.0,0.00021369,2]
[362609627,1748374254013,-151.0,0.00021369,2]
[362609629,1748374254023,-430.0,0.00021369,2]
[362609631,1748374254032,-430.0,0.00021369,2]
[362609633,1748374254041,-151.0,0.00021369,2]
[362609635,1748374254050,-430.0,0.00021369,2]
[362609637,1748374254059,-220.26015,0.00021369,2]
[362609639,1748374254069,-430.0,0.00021369,2]
[362609641,1748374254079,-430.0,0.00021369,2]
[362609643,1748374254088,-430.0,0.00021369,2]
[362609645,1748374254097,-1614.78,0.00021369,2]
[362609647,1748374254106,-2382.96,0.00021369,2]
[362609649,1748374254117,-430.0,0.00021369,2]
[362609651,1748374254126,-584.02,0.00021369,2]
[362609653,1748374254135,-430.0,0.00021369,2]
[362609655,1748374254144,-1381.99,0.00021369,2]
[362609657,1748374254153,-434.89,0.00021369,2]
[362609659,1748374254163,-1713.29,0.00021369,2]
[362609661,1748374254173,-481.07,0.00021369,2]
[362609662,1748374254183,-912.82,0.00021369,2]
[362609664,1748374254192,-430.0,0.00021369,2]
[362609666,1748374254202,-499.65,0.00021369,2]
[362609668,1748374254212,-2022.5,0.00021369,2]
[362609670,1748374254222,-495.62,0.00021369,2]
[362609672,1748374254233,-722.34629991,0.00021369,2]
[362609751,1748374464954,373.519184,0.00013699,2]
[362609798,1748375432139,-160.0,0.00018143,2]
[362609799,1748375432153,-393.83063043,0.00018148,2]
[362609800,1748375432169,-945.70940327,0.00018148,2]
[362609801,1748375432184,-279.006886,0.00018177,2]
[362609804,1748375432197,-2782.85,0.00018829,2]
[362609806,1748375432211,-787.4740356,0.000189,2]
[362609808,1748375432223,-300.0,0.00019173,2]
[362609811,1748375432235,-1200.0,0.00019173,2]
[362609813,1748375432248,-300.0,0.00019174,2]
[362609816,1748375432260,-500.0,0.00019174,2]
[362609819,1748375432273,-500.0,0.00019174,2]
[362609822,1748375432285,-500.0,0.00019174,2]
[362609826,1748375432298,-557.27781594,0.00019174,2]
[362609829,1748375432312,-217.62625734,0.00019174,2]
[362609833,1748375432324,-500.0,0.00019174,2]
[362609836,1748375432336,-555.72473826,0.00019174,2]
[362609838,1748375432347,-500.0,0.00019174,2]
[362609841,1748375432357,-500.0,0.00019174,2]
[362609843,1748375432369,-500.0,0.00019174,2]
[362609845,1748375432381,-385.89898106,0.00019174,2]
[362609847,1748375432392,-500.0,0.00019174,2]
[362609850,1748375432405,-500.0,0.00019174,2]
[362609852,1748375432417,-500.0,0.00019174,2]
[362609854,1748375432429,-8448.43188253,0.00019175,2]
[362609903,1748375437983,-500.0,0.00019177,2]
[362609905,1748375437995,-500.0,0.00019177,2]
[362609907,1748375438007,-500.0,0.00019177,2]
[362609909,1748375438019,-440.05959236,0.00019177,2]
[362609911,1748375438032,-500.0,0.00019177,2]
[362609913,1748375438045,-500.0,0.00019177,2]
[362609916,1748375438056,-500.0,0.00019177,2]
[362609918,1748375438069,-500.0,0.00019177,2]
[362609920,1748375438080,-500.0,0.00019177,2]
[362609922,1748375438093,-201.96496273,0.00019177,2]
[362609924,1748375438104,-500.0,0.00019177,2]
[362609927,1748375438116,-569.49708286,0.00019177,2]
[362609929,1748375438128,-569.49708286,0.00019177,2]
[362609931,1748375438139,-257.81808709,0.00019177,2]
[362610414,1748375443009,-300.0,0.00019176,2]
[362610416,1748375443019,-311.67899577,0.00019177,2]
[362610418,1748375443030,-569.49708286,0.00019177,2]
[362610420,1748375443039,-569.49708286,0.00019177,2]
[362610422,1748375443049,-569.49708286,0.00019177,2]
[362610424,1748375443058,-214.60371165,0.00019177,2]
[362610426,1748375443068,-569.49708286,0.00019177,2]
[362610428,1748375443078,-569.49708286,0.00019177,2]
[362610430,1748375443088,-569.49708286,0.00019177,2]
[362610432,1748375443106,-569.49708286,0.00019177,2]
[362610434,1748375443116,-569.49708286,0.00019177,2]
[362610436,1748375443125,-569.49708286,0.00019177,2]
[362610438,1748375443135,-569.49708286,0.00019177,2]
[362610440,1748375443144,-608.22288449,0.00019177,2]
[362610442,1748375443153,-608.22288449,0.00019177,2]
[362610444,1748375443163,-608.22288449,0.00019177,2]
[362610446,1748375443171,-608.22288449,0.00019177,2]
[362610448,1748375443181,-608.22288449,0.00019177,2]
[362610450,1748375443190,-500.0,0.00019178,2]
[362610452,1748375443199,-500.0,0.00019178,2]
[362610454,1748375443208,-345.90567136,0.00019178,2]
[362610456,1748375443217,-430.0,0.00019178,2]
[362610458,1748375443226,-500.0,0.00019178,2]
[362610459,1748375443236,-430.0,0.00019178,2]
[362610461,1748375443245,-430.0,0.00019178,2]
[362610463,1748375443255,-430.0,0.00019178,2]
[362610465,1748375443264,-430.0,0.00019178,2]
[362610468,1748375443274,-430.0,0.00019178,2]
[362610470,1748375443284,-430.0,0.00019178,2]
[362610472,1748375443293,-430.0,0.00019178,2]
[362610474,1748375443304,-430.0,0.00019178,2]
[362610477,1748375443314,-430.0,0.00019178,2]
[362610479,1748375443324,-430.0,0.00019178,2]
[362610481,1748375443333,-430.0,0.00019178,2]
[362610483,1748375443343,-430.0,0.00019178,2]
[362610485,1748375443352,-430.0,0.00019178,2]
[362610488,1748375443374,-430.0,0.00019178,2]
[362610490,1748375443386,-196.56458052,0.00019178,2]
[362610492,1748375443396,-430.0,0.00019178,2]
[362610494,1748375443406,-430.0,0.00019178,2]
[362610496,1748375443416,-430.0,0.00019178,2]
[362610498,1748375443426,-430.0,0.00019178,2]
[362610501,1748375443437,-432.77,0.00019178,2]
[362610503,1748375443446,-430.0,0.00019178,2]
[362610505,1748375443456,-430.0,0.00019178,2]
[362610507,1748375443466,-430.0,0.00019178,2]
[362610509,1748375443477,-430.0,0.00019178,2]
[362610511,1748375443487,-2182.33,0.00019178,2]
[362610513,1748375443497,-430.0,0.00019178,2]
[362610515,1748375443508,-881.96,0.00019178,2]
[362610517,1748375443518,-430.0,0.00019178,2]
[362610519,1748375443528,-430.0,0.00019178,2]
[362610522,1748375443538,-430.0,0.00019178,2]
[362610524,1748375443549,-430.0,0.00019178,2]
[362610526,1748375443559,-567.22,0.00019178,2]
[362610528,1748375443569,-430.0,0.00019178,2]
[362610530,1748375443579,-430.0,0.00019178,2]
[362610532,1748375443589,-637.66,0.00019178,2]
[362610534,1748375443599,-430.0,0.00019178,2]
[362610536,1748375443609,-430.0,0.00019178,2]
[362610538,1748375443619,-273.67843974,0.00019178,2]
[362610540,1748375443628,-576.81671629,0.00019178,2]
[362610542,1748375443638,-430.0,0.00019178,2]
[362610544,1748375443649,-430.0,0.00019178,2]
[362610546,1748375443660,-430.0,0.00019178,2]
[362610549,1748375443670,-430.0,0.00019178,2]
[362610551,1748375443680,-430.0,0.00019178,2]
[362610552,1748375443690,-1333.81,0.00019178,2]
[362610555,1748375443701,-430.0,0.00019178,2]
[362610557,1748375443712,-430.0,0.00019178,2]
[362610559,1748375443725,-430.0,0.00019178,2]
[362610561,1748375443735,-430.0,0.00019178,2]
[362610563,1748375443748,-522.97,0.00019178,2]
[362610565,1748375443757,-430.0,0.00019178,2]
[362610567,1748375443769,-430.0,0.00019178,2]
[362610569,1748375443779,-430.0,0.00019178,2]
[362610571,1748375443788,-430.0,0.00019178,2]
[362610573,1748375443799,-430.0,0.00019178,2]
[362610575,1748375443811,-430.0,0.00019178,2]
[362610577,1748375443821,-430.0,0.00019178,2]
[362610579,1748375443831,-430.0,0.00019178,2]
[362610581,1748375443843,-430.0,0.00019178,2]
[362610583,1748375443853,-430.0,0.00019178,2]
[362610585,1748375443863,-430.0,0.00019178,2]
[362610587,1748375443873,-430.0,0.00019178,2]
[362610589,1748375443882,-430.0,0.00019178,2]
[362610591,1748375443893,-430.0,0.00019178,2]
[362610593,1748375443904,-430.0,0.00019178,2]
[362610595,1748375443914,-430.0,0.00019178,2]
[362610596,1748375443924,-430.0,0.00019178,2]
[362610598,1748375443933,-430.0,0.00019178,2]
[362610600,1748375443943,-430.0,0.00019178,2]
[362610602,1748375443953,-430.0,0.00019178,2]
[362610603,1748375443963,-430.0,0.00019178,2]
[362610605,1748375443973,-430.0,0.00019178,2]
[362610607,1748375443987,-430.0,0.00019178,2]
[362610609,1748375443997,-430.0,0.00019178,2]
[362610611,1748375444009,-430.0,0.00019178,2]
[362610612,1748375444019,-430.0,0.00019178,2]
[362610614,1748375444028,-430.0,0.00019178,2]
[362610616,1748375444038,-512.98,0.00019178,2]
[362610617,1748375444048,-430.0,0.00019178,2]
[362610619,1748375444059,-660.76,0.00019178,2]
[362610621,1748375444068,-437.33484307,0.00019178,2]
[362610623,1748375444078,-647.9,0.00019178,2]
[362610624,1748375444088,-430.0,0.00019178,2]
[362610626,1748375444099,-430.0,0.00019178,2]
[362610628,1748375444108,-573.92597905,0.00019178,2]
[362610629,1748375444118,-430.0,0.00019178,2]
[362610631,1748375444128,-430.0,0.00019178,2]
[362610633,1748375444138,-430.0,0.00019178,2]
[362610634,1748375444148,-816.48,0.00019178,2]
[362610636,1748375444158,-430.0,0.00019178,2]
[362610638,1748375444168,-430.0,0.00019178,2]
[362610640,1748375444178,-430.0,0.00019178,2]
[362610641,1748375444189,-447.83,0.00019178,2]
[362610643,1748375444199,-430.0,0.00019178,2]
[362610645,1748375444208,-1792.46,0.00019178,2]
[362610646,1748375444218,-430.0,0.00019178,2]
[362610648,1748375444228,-430.0,0.00019178,2]
[362610650,1748375444238,-430.0,0.00019178,2]
[362610652,1748375444248,-822.89,0.00019178,2]
[362610654,1748375444257,-430.0,0.00019178,2]
[362610655,1748375444267,-430.0,0.00019178,2]
[362610657,1748375444277,-430.0,0.00019178,2]
[362610659,1748375444287,-430.0,0.00019178,2]
[362610660,1748375444297,-1091.44,0.00019178,2]
[362610662,1748375444306,-430.0,0.00019178,2]
[362610664,1748375444316,-430.0,0.00019178,2]
[362610666,1748375444326,-430.0,0.00019178,2]
[362610667,1748375444335,-430.0,0.00019178,2]
[362610669,1748375444347,-430.0,0.00019178,2]
[362610671,1748375444356,-430.0,0.00019178,2]
[362610673,1748375444367,-430.0,0.00019178,2]
[362610675,1748375444378,-430.0,0.00019178,2]
[362610677,1748375444387,-1289.28,0.00019178,2]
[362610678,1748375444396,-430.0,0.00019178,2]
[362610680,1748375444406,-430.0,0.00019178,2]
[362610682,1748375444416,-418.67133647,0.00019178,2]
[362610684,1748375444426,-1350.97,0.00019178,2]
[362610686,1748375444435,-430.0,0.00019178,2]
[362610687,1748375444445,-430.0,0.00019178,2]
[362610689,1748375444455,-182.292228,0.00019178,2]
[362610691,1748375444464,-430.0,0.00019452,2]
[362610693,1748375444474,-500.0,0.00019452,2]
[362610694,1748375444483,-430.0,0.00019452,2]
[362610696,1748375444493,-430.0,0.00019452,2]
[362610698,1748375444503,-430.0,0.00019452,2]
[362610699,1748375444512,-430.0,0.00019452,2]
[362610701,1748375444522,-385.57517533,0.00019452,2]
[362610703,1748375444531,-430.0,0.00019452,2]
[362610705,1748375444541,-430.0,0.00019452,2]
[362610707,1748375444551,-430.0,0.00019452,2]
[362610708,1748375444561,-430.0,0.00019452,2]
[362610710,1748375444571,-430.0,0.00019452,2]
[362610712,1748375444581,-430.0,0.00019452,2]
[362610714,1748375444590,-430.0,0.00019452,2]
[362610716,1748375444603,-430.0,0.00019452,2]
[362610718,1748375444612,-430.0,0.00019452,2]
[362610719,1748375444622,-432.77,0.00019452,2]
[362610721,1748375444632,-430.0,0.00019452,2]
[362610723,1748375444641,-430.0,0.00019452,2]
[362610725,1748375444652,-430.0,0.00019452,2]
[362610727,1748375444662,-2182.33,0.00019452,2]
[362610728,1748375444672,-430.0,0.00019452,2]
[362610730,1748375444681,-881.96,0.00019452,2]
[362610732,1748375444691,-430.0,0.00019452,2]
[362610734,1748375444700,-430.0,0.00019452,2]
[362610735,1748375444710,-567.22,0.00019452,2]
[362610737,1748375444721,-430.0,0.00019452,2]
[362610739,1748375444734,-637.66,0.00019452,2]
[362610741,1748375444745,-337.8849395,0.00019452,2]
[362610743,1748375444755,-430.0,0.00019452,2]
[362610745,1748375444764,-430.0,0.00019452,2]
[362610746,1748375444774,-430.0,0.00019452,2]
[362610748,1748375444783,-430.0,0.00019452,2]
[362610750,1748375444793,-430.0,0.00019452,2]
[362610752,1748375444806,-1333.81,0.00019452,2]
[362610754,1748375444816,-430.0,0.00019452,2]
[362610755,1748375444825,-430.0,0.00019452,2]
[362610757,1748375444835,-430.0,0.00019452,2]
[362610759,1748375444844,-430.0,0.00019452,2]
[362610761,1748375444854,-28.18456077,0.00019452,2]
[362610764,1748375444873,-401.81543923,0.00019452,2]
[362610765,1748375444884,-430.0,0.00019452,2]
[362610767,1748375444895,-430.0,0.00019452,2]
[362610769,1748375444906,-24.82456076,0.00019452,2]
[362610871,1748375446141,-430.0,0.00019178,2]
[362610873,1748375446152,-430.0,0.00019178,2]
[362610874,1748375446163,-405.17543924,0.00019452,2]
[362610876,1748375446173,-430.0,0.00019452,2]
[362610878,1748375446183,-430.0,0.00019452,2]
[362610881,1748375446194,-430.0,0.00019452,2]
[362610883,1748375446204,-430.0,0.00019452,2]
[362610885,1748375446216,-430.0,0.00019452,2]
[362610887,1748375446235,-430.0,0.00019452,2]
[362610889,1748375446247,-280.57902357,0.00019452,2]
[362611872,1748375457825,354.843224,0.00013699,2]
[362614340,1748375980850,-4833.0,0.00017971,2]
[362614365,1748376605972,357.85213,0.00013699,2]
[362614415,1748376632116,-844.76062011,0.00017263,2]
[362614421,1748376632170,-4155.23937989,0.00017263,2]
[362614423,1748376632180,-279.0068861,0.00018153,2]
[362614425,1748376632190,-960.0,0.00018241,2]
[362614427,1748376632200,-300.0,0.00018242,2]
[362614429,1748376632210,-300.0,0.00018242,2]
[362614431,1748376632219,-300.0,0.00018242,2]
[362614433,1748376632229,-300.0,0.00018242,2]
[362614435,1748376632239,-283.0,0.00018243,2]
[362614437,1748376632248,-6436.12113862,0.00018244,2]
[362614439,1748376632258,-500.0,0.00018245,2]
[362614441,1748376632268,-265.09988678,0.00018245,2]
[362614443,1748376632278,-604.65907063,0.00018245,2]
[362614445,1748376632287,-12801.68230007,0.00018246,2]
[362614448,1748376632301,-254.87,0.00018246,2]
[362614450,1748376632312,-11228.67368083,0.00018246,2]
[362614452,1748376632322,-1681.61383843,0.00018292,2]
[362614455,1748376632332,-464.0362829,0.00018391,2]
[362614737,1748376638167,-259.5427499,0.00018391,2]
[362614738,1748376638178,-2667.38554301,0.000189,2]
[362614739,1748376638187,-524.9826904,0.000189,2]
[362614740,1748376638198,-64.37131234,0.00018972,2]
[362614741,1748376638210,-2854.20868766,0.00018972,2]
[362614742,1748376638220,-5000.0,0.00019042,2]
[362614743,1748376638230,-207.4,0.00019042,2]
[362614744,1748376638240,-183.90002302,0.00019078,2]
[362614746,1748376638250,-2667.38554272,0.00019107,2]
[362614747,1748376638259,-3595.64204661,0.00019166,2]
[362614748,1748376638431,-500.0,0.00019176,2]
[362614749,1748376638441,-500.0,0.00019176,2]
[362614750,1748376638451,-242.19561744,0.00019176,2]
[362614751,1748376638460,-500.0,0.00019176,2]
[362614752,1748376638470,-260.92439708,0.00019176,2]
[362614753,1748376638479,-500.0,0.00019176,2]
[362614754,1748376638488,-500.0,0.00019176,2]
[362614755,1748376638498,-500.0,0.00019176,2]
[362614756,1748376638507,-500.0,0.00019176,2]
[362614757,1748376638516,-167.42697178,0.00019176,2]
[362614758,1748376638526,-500.0,0.00019176,2]
[362614759,1748376638535,-500.0,0.00019176,2]
[362614760,1748376638544,-500.0,0.00019176,2]
[362614761,1748376638554,-500.0,0.00019176,2]
[362614762,1748376638563,-500.0,0.00019176,2]
[362614763,1748376638573,-500.0,0.00019176,2]
[362614764,1748376638582,-500.0,0.00019176,2]
[362614765,1748376638592,-500.0,0.00019176,2]
[362614766,1748376638601,-500.0,0.00019176,2]
[362614767,1748376638610,-500.0,0.00019176,2]
[362614768,1748376638619,-500.0,0.00019176,2]
[362614769,1748376638628,-500.0,0.00019176,2]
[362614770,1748376638639,-500.0,0.00019176,2]
[362614771,1748376638649,-6215.66436744,0.00019178,3]
[362614772,1748376638658,-15921.32782165,0.00019178,2]
[362614773,1748376638668,-430.0,0.00019178,2]
[362614774,1748376638677,-382.73203999,0.00019178,2]
[362614775,1748376638687,-430.0,0.00019178,2]
[362614776,1748376638696,-430.0,0.00019178,2]
[362614777,1748376638705,-430.0,0.00019178,2]
[362614778,1748376638715,-430.0,0.00019178,2]
[362614779,1748376638724,-430.0,0.00019178,2]
[362614780,1748376638734,-430.0,0.00019178,2]
[362614781,1748376638743,-500.0,0.00019178,2]
[362614782,1748376638752,-430.0,0.00019178,2]
[362614783,1748376638762,-430.0,0.00019178,2]
[362614784,1748376638771,-430.0,0.00019178,2]
[362614785,1748376638781,-430.0,0.00019178,2]
[362614786,1748376638791,-430.0,0.00019178,2]
[362614787,1748376638801,-430.0,0.00019178,2]
[362614788,1748376638810,-430.0,0.00019178,2]
[362614789,1748376638819,-430.0,0.00019178,2]
[362614790,1748376638829,-151.0,0.00019178,2]
[362614791,1748376638839,-151.0,0.00019178,2]
[362614792,1748376638848,-151.0,0.00019178,2]
[362614793,1748376638858,-151.0,0.00019178,2]
[362614794,1748376638867,-151.60411204,0.00019178,2]
[362614796,1748376638876,-151.0,0.00019178,2]
[362614797,1748376638886,-151.0,0.00019178,2]
[362614798,1748376638896,-151.0,0.00019178,2]
[362614799,1748376638906,-430.0,0.00019178,2]
[362614800,1748376638914,-267.33774952,0.00019178,2]
[362614801,1748376638924,-430.0,0.00019178,2]
[362614802,1748376638933,-430.0,0.00019178,2]
[362614803,1748376638942,-430.0,0.00019178,2]
[362614804,1748376638952,-430.0,0.00019178,2]
[362614805,1748376638962,-430.0,0.00019178,2]
[362614806,1748376638971,-430.0,0.00019178,2]
[362614807,1748376638980,-430.0,0.00019178,2]
[362614808,1748376638990,-430.0,0.00019178,2]
[362614809,1748376638999,-430.0,0.00019178,2]
[362614810,1748376639008,-430.0,0.00019178,2]
[362614811,1748376639017,-430.0,0.00019178,2]
[362614812,1748376639027,-430.0,0.00019178,2]
[362614813,1748376639036,-430.0,0.00019178,2]
[362614814,1748376639046,-609.29,0.00019178,2]
[362614815,1748376639055,-430.0,0.00019178,2]
[362614816,1748376639064,-430.0,0.00019178,2]
[362614817,1748376639073,-217.97027794,0.00019178,2]
[362614818,1748376639083,-430.0,0.00019178,2]
[362614819,1748376639091,-430.0,0.00019178,2]
[362614820,1748376639100,-430.0,0.00019178,2]
[362614821,1748376639110,-430.0,0.00019178,2]
[362614822,1748376639119,-430.0,0.00019178,2]
[362614823,1748376639132,-430.0,0.00019178,2]
[362614824,1748376639142,-430.0,0.00019178,2]
[362614825,1748376639151,-430.0,0.00019178,2]
[362614826,1748376639161,-167.23489735,0.00019178,2]
[362614827,1748376639171,-430.0,0.00019178,2]
[362614828,1748376639180,-1571.98,0.00019178,2]
[362614829,1748376639189,-430.0,0.00019178,2]
[362614830,1748376639199,-430.0,0.00019178,2]
[362614831,1748376639211,-430.0,0.00019178,2]
[362614832,1748376639221,-578.22,0.00019178,2]
[362614833,1748376639231,-430.0,0.00019178,2]
[362614834,1748376639240,-430.0,0.00019178,2]
[362614835,1748376639250,-3070.95,0.00019178,2]
[362614836,1748376639259,-304.80428803,0.00019178,2]
[362614837,1748376639270,-163.06617706,0.00019178,2]
[362614838,1748376639280,-430.0,0.00019178,2]
[362614839,1748376639290,-430.0,0.00019178,2]
[362614840,1748376639300,-430.0,0.00019178,2]
[362614841,1748376639310,-430.0,0.00019178,2]
[362614842,1748376639319,-430.0,0.00019178,2]
[362614843,1748376639328,-430.0,0.00019178,2]
[362614844,1748376639338,-430.0,0.00019178,2]
[362614845,1748376639347,-430.0,0.00019178,2]
[362614846,1748376639356,-430.0,0.00019178,2]
[362614847,1748376639367,-430.0,0.00019178,2]
[362614848,1748376639378,-1269.13,0.00019178,2]
[362614849,1748376639387,-430.0,0.00019178,2]
[362614850,1748376639397,-430.0,0.00019178,2]
[362614851,1748376639407,-430.0,0.00019178,2]
[362614852,1748376639416,-560.91,0.00019178,2]
[362614853,1748376639426,-430.0,0.00019178,2]
[362614854,1748376639436,-888.79,0.00019178,2]
[362614855,1748376639445,-776.6,0.00019178,2]
[362614856,1748376639455,-537.02,0.00019178,2]
[362614857,1748376639464,-430.0,0.00019178,2]
[362614858,1748376639473,-430.0,0.00019178,2]
[362614859,1748376639484,-430.0,0.00019178,2]
[362614860,1748376639494,-430.0,0.00019178,2]
[362614861,1748376639503,-430.0,0.00019178,2]
[362614862,1748376639512,-1896.83,0.00019178,2]
[362614863,1748376639521,-430.0,0.00019178,2]
[362614864,1748376639530,-430.0,0.00019178,2]
[362614865,1748376639540,-430.0,0.00019178,2]
[362614866,1748376639550,-430.0,0.00019178,2]
[362614867,1748376639560,-430.0,0.00019178,2]
[362614868,1748376639570,-430.0,0.00019178,2]
[362614869,1748376639579,-430.0,0.00019178,2]
[362614870,1748376639589,-430.0,0.00019178,2]
[362614872,1748376639599,-430.0,0.00019178,2]
[362614873,1748376639608,-430.0,0.00019178,2]
[362614874,1748376639617,-458.08,0.00019178,2]
[362614875,1748376639627,-430.0,0.00019178,2]
[362614876,1748376639637,-430.0,0.00019178,2]
[362614877,1748376639647,-430.0,0.00019178,2]
[362614878,1748376639657,-430.0,0.00019178,2]
[362614879,1748376639668,-430.0,0.00019178,2]
[362614880,1748376639678,-430.0,0.00019178,2]
[362614881,1748376639687,-430.0,0.00019178,2]
[362614882,1748376639697,-872.5,0.00019178,2]
[362614883,1748376639706,-430.0,0.00019178,2]
[362614884,1748376639715,-430.0,0.00019178,2]
[362614885,1748376639725,-430.0,0.00019178,2]
[362614886,1748376639734,-400.0,0.00019178,2]
[362614887,1748376639744,-430.0,0.00019178,2]
[362614888,1748376639754,-430.0,0.00019178,2]
[362614889,1748376639763,-430.0,0.00019178,2]
[362614890,1748376639772,-430.0,0.00019178,2]
[362614891,1748376639783,-430.0,0.00019178,2]
[362614892,1748376639792,-672.32,0.00019178,2]
[362614894,1748376639802,-430.0,0.00019178,2]
[362614896,1748376639811,-400.0,0.00019178,2]
[362614897,1748376639821,-430.0,0.00019178,2]
[362614898,1748376639830,-430.0,0.00019178,2]